fUST/lending_fUST_20250530
["ID","MTS","AMOUNT","RATE_DAILY","PERIOD"]
[362962986,1748537441038,-1387.74887818,0.00020072,2]
[362962988,1748537441047,-151.0,0.00020082,2]
[362962990,1748537441056,-160.0,0.00020107,2]
[362962992,1748537441065,-229.26895353,0.00020107,2]
[362962994,1748537441075,-230.70319592,0.0002011,2]
[362962995,1748537441085,-423.31762986,0.00020129,2]
[362962997,1748537441095,-160.0,0.00020129,2]
[362962999,1748537441105,-842.5625,0.00020129,2]
[362963001,1748537441114,-942.834113,0.00020187,2]
[362963003,1748537441124,-1387.74887818,0.00020245,2]
[362963005,1748537441133,-729.80585427,0.00020268,2]
[362963007,1748537441143,-430.0,0.00020273,2]
[362963009,1748537441152,-252.92372484,0.00020273,2]
[362963011,1748537441162,-430.0,0.00020273,2]
[362963013,1748537441171,-358.45962418,0.00020273,2]
[362963015,1748537441181,-430.0,0.00020273,2]
[362963017,1748537441190,-430.0,0.00020273,2]
[362963019,1748537441200,-430.0,0.00020273,2]
[362963021,1748537441209,-430.0,0.00020273,2]
[362963023,1748537441218,-430.0,0.00020273,2]
[362963025,1748537441228,-313.2,0.00020273,2]
[362963027,1748537441237,-430.0,0.00020273,2]
[362963029,1748537441246,-430.0,0.00020273,2]
[362963031,1748537441255,-440.7707812,0.00020273,2]
[362963033,1748537441265,-430.0,0.00020273,2]
[362963034,1748537441274,-335.78953446,0.00020273,2]
[362963036,1748537441283,-318.28610836,0.00020273,2]
[362963040,1748537441307,-178.73227049,0.00020273,2]
[362963042,1748537441316,-557.85,0.00020273,2]
[362963044,1748537441326,-430.0,0.00020273,2]
[362963045,1748537441336,-430.0,0.00020273,2]
[362963047,1748537441346,-330.6,0.00020273,2]
[362963049,1748537441355,-430.0,0.00020273,2]
[362963051,1748537441366,-430.0,0.00020273,2]
[362963053,1748537441375,-430.0,0.00020273,2]
[362963055,1748537441384,-389.66,0.00020273,2]
[362963057,1748537441394,-430.0,0.00020273,2]
[362963059,1748537441403,-517.64545535,0.00020273,2]
[362963061,1748537441413,-430.0,0.00020273,2]
[362963063,1748537441422,-625.32,0.00020273,2]
[362963065,1748537441432,-534.32,0.00020273,2]
[362963067,1748537441441,-447.31,0.00020273,2]
[362963069,1748537441451,-430.0,0.00020273,2]
[362963071,1748537441460,-430.0,0.00020273,2]
[362963073,1748537441470,-430.0,0.00020273,2]
[362963075,1748537441479,-430.0,0.00020273,2]
[362963077,1748537441490,-330.46050924,0.00020273,2]
[362963079,1748537441503,-1577.09,0.00020273,2]
[362963081,1748537441513,-3728.52,0.00020273,2]
[362963083,1748537441522,-430.0,0.00020273,2]
[362963085,1748537441532,-637.94,0.00020273,2]
[362963087,1748537441541,-430.0,0.00020273,2]
[362963089,1748537441550,-430.0,0.00020273,2]
[362963091,1748537441559,-430.0,0.00020273,2]
[362963093,1748537441569,-430.0,0.00020273,2]
[362963095,1748537441583,-430.0,0.00020273,2]
[362963096,1748537441592,-1078.54,0.00020273,2]
[362963099,1748537441602,-430.0,0.00020273,2]
[362963100,1748537441611,-430.0,0.00020273,2]
[362963102,1748537441621,-430.0,0.00020273,2]
[362963104,1748537441631,-1256.97,0.00020273,2]
[362963106,1748537441640,-430.0,0.00020273,2]
[362963108,1748537441650,-996.57,0.00020273,2]
[362963110,1748537441659,-430.0,0.00020273,2]
[362963112,1748537441669,-1214.32,0.00020273,2]
[362963114,1748537441678,-430.0,0.00020273,2]
[362963116,1748537441687,-360.28291869,0.00020273,2]
[362963118,1748537441697,-795.2,0.00020273,2]
[362963120,1748537441706,-1346.61,0.00020273,2]
[362963122,1748537441715,-430.0,0.00020273,2]
[362963124,1748537441725,-252.85,0.00020273,2]
[362963126,1748537441735,-442.24,0.00020273,2]
[362963128,1748537441744,-430.0,0.00020273,2]
[362963130,1748537441753,-430.0,0.00020273,2]
[362963132,1748537441763,-430.0,0.00020273,2]
[362963134,1748537441772,-1387.74887818,0.00020417,3]
[362963136,1748537441782,-430.0,0.00020547,2]
[362963138,1748537441792,-430.0,0.00020547,2]
[362963140,1748537441801,-430.0,0.00020547,2]
[362963142,1748537441811,-430.0,0.00020547,2]
[362963144,1748537441820,-430.0,0.00020547,2]
[362963146,1748537441830,-430.0,0.00020547,2]
[362963148,1748537441840,-430.0,0.00020547,2]
[362963150,1748537441849,-430.0,0.00020547,2]
[362963152,1748537441858,-430.0,0.00020547,2]
[362963154,1748537441867,-468.75,0.00020547,2]
[362963156,1748537441876,-430.0,0.00020547,2]
[362963157,1748537441886,-430.0,0.00020547,2]
[362963159,1748537441895,-430.0,0.00020547,2]
[362963161,1748537441904,-256.48304668,0.00020547,2]
[362963163,1748537441914,-430.0,0.00020547,2]
[362963165,1748537441923,-430.0,0.00020547,2]
[362963167,1748537441933,-430.0,0.00020547,2]
[362963169,1748537441943,-625.32,0.00020547,2]
[362963171,1748537441952,-534.32,0.00020547,2]
[362963173,1748537441961,-447.31,0.00020547,2]
[362963175,1748537441970,-430.0,0.00020547,2]
[362963177,1748537441980,-430.0,0.00020547,2]
[362963179,1748537441989,-430.0,0.00020547,2]
[362963181,1748537441999,-430.0,0.00020547,2]
[362963182,1748537442008,-1577.09,0.00020547,2]
[362963183,1748537442017,-3728.52,0.00020547,2]
[362963184,1748537442026,-283.63,0.00020547,2]
[362963185,1748537442035,-637.94,0.00020547,2]
[362963186,1748537442045,-430.0,0.00020547,2]
[362963187,1748537442054,-430.0,0.00020547,2]
[362963188,1748537442063,-430.0,0.00020547,2]
[362963189,1748537442072,-430.0,0.00020547,2]
[362963190,1748537442081,-358.10854686,0.00020547,2]
[362963191,1748537442090,-1078.54,0.00020547,2]
[362963192,1748537442099,-430.0,0.00020547,2]
[362963193,1748537442108,-430.0,0.00020547,2]
[362963194,1748537442117,-430.0,0.00020547,2]
[362963195,1748537442126,-1256.97,0.00020547,2]
[362963196,1748537442135,-430.0,0.00020547,2]
[362963197,1748537442144,-996.57,0.00020547,2]
[362963198,1748537442153,-430.0,0.00020547,2]
[362963199,1748537442163,-1214.32,0.00020547,2]
[362963200,1748537442172,-430.0,0.00020547,2]
[362963201,1748537442181,-795.2,0.00020547,2]
[362963202,1748537442190,-1346.61,0.00020547,2]
[362963203,1748537442199,-430.0,0.00020547,2]
[362963204,1748537442208,-430.0,0.00020547,2]
[362963205,1748537442224,-430.0,0.00020547,2]
[362963206,1748537442233,-430.0,0.00020547,2]
[362963207,1748537442242,-165.453,0.00020561,2]
[362963208,1748537442251,-1387.74887818,0.0002059,3]
[362963209,1748537442260,-578.21270261,0.00020739,2]
[362963211,1748537442270,-1387.74887818,0.00020762,3]
[362963213,1748537442279,-467.21,0.00020821,2]
[362963215,1748537442289,-430.0,0.00020821,2]
[362963217,1748537442298,-430.0,0.00020821,2]
[362963219,1748537442308,-430.0,0.00020821,2]
[362963221,1748537442317,-430.0,0.00020821,2]
[362963223,1748537442326,-430.0,0.00020821,2]
[362963225,1748537442337,-430.0,0.00020821,2]
[362963227,1748537442347,-430.0,0.00020821,2]
[362963229,1748537442356,-430.0,0.00020821,2]
[362963231,1748537442365,-430.0,0.00020821,2]
[362963233,1748537442375,-430.0,0.00020821,2]
[362963235,1748537442386,-430.0,0.00020821,2]
[362963237,1748537442395,-430.0,0.00020821,2]
[362963239,1748537442405,-430.0,0.00020821,2]
[362963255,1748537442514,-430.0,0.00020821,2]
[362963258,1748537442524,-625.32,0.00020821,2]
[362963260,1748537442535,-534.32,0.00020821,2]
[362963263,1748537442544,-447.31,0.00020821,2]
[362963265,1748537442555,-430.0,0.00020821,2]
[362963267,1748537442565,-430.0,0.00020821,2]
[362963269,1748537442581,-430.0,0.00020821,2]
[362963271,1748537442591,-430.0,0.00020821,2]
[362963274,1748537442602,-1577.09,0.00020821,2]
[362963277,1748537442612,-3728.52,0.00020821,2]
[362963280,1748537442622,-637.94,0.00020821,2]
[362963283,1748537442633,-430.0,0.00020821,2]
[362963286,1748537442642,-430.0,0.00020821,2]
[362963289,1748537442651,-430.0,0.00020821,2]
[362963292,1748537442661,-430.0,0.00020821,2]
[362963295,1748537442671,-1078.54,0.00020821,2]
[362963298,1748537442679,-430.0,0.00020821,2]
[362963301,1748537442689,-343.86896285,0.00020821,2]
[362963304,1748537442698,-283.55849407,0.00020821,2]
[362963307,1748537442707,-1256.97,0.00020821,2]
[362963310,1748537442715,-430.0,0.00020821,2]
[362963312,1748537442724,-996.57,0.00020821,2]
[362963314,1748537442734,-430.0,0.00020821,2]
[362963316,1748537442743,-1214.32,0.00020821,2]
[362963318,1748537442752,-430.0,0.00020821,2]
[362963320,1748537442761,-795.2,0.00020821,2]
[362963322,1748537442770,-1346.61,0.00020821,2]
[362963324,1748537442779,-198.85,0.00020821,2]
[362963326,1748537442788,-430.0,0.00020821,2]
[362963328,1748537442797,-430.0,0.00020821,2]
[362963330,1748537442807,-430.0,0.00020821,2]
[362963332,1748537442815,-1387.74887818,0.00020934,4]
[362963334,1748537442825,-157.62907974,0.00021018,2]
[362963336,1748537442835,-430.0,0.00021095,2]
[362963338,1748537442844,-430.0,0.00021095,2]
[362963340,1748537442853,-430.0,0.00021095,2]
[362963342,1748537442862,-430.0,0.00021095,2]
[362963344,1748537442870,-430.0,0.00021095,2]
[362963346,1748537442879,-430.0,0.00021095,2]
[362963348,1748537442888,-430.0,0.00021095,2]
[362963350,1748537442897,-430.0,0.00021095,2]
[362963351,1748537442906,-358.0,0.00021095,2]
[362963353,1748537442916,-430.0,0.00021095,2]
[362963355,1748537442925,-430.0,0.00021095,2]
[362963357,1748537442934,-430.0,0.00021095,2]
[362963359,1748537442943,-430.0,0.00021095,2]
[362963361,1748537442952,-430.0,0.00021095,2]
[362963363,1748537442962,-625.32,0.00021095,2]
[362963365,1748537442971,-534.32,0.00021095,2]
[362963367,1748537442980,-447.31,0.00021095,2]
[362963369,1748537442989,-430.0,0.00021095,2]
[362963371,1748537442999,-430.0,0.00021095,2]
[362963373,1748537443009,-430.0,0.00021095,2]
[362963375,1748537443019,-430.0,0.00021095,2]
[362963377,1748537443027,-1577.09,0.00021095,2]
[362963379,1748537443038,-3728.52,0.00021095,2]
[362963381,1748537443047,-637.94,0.00021095,2]
[362963383,1748537443057,-430.0,0.00021095,2]
[362963385,1748537443066,-430.0,0.00021095,2]
[362963387,1748537443075,-430.0,0.00021095,2]
[362963389,1748537443084,-430.0,0.00021095,2]
[362963391,1748537443093,-1078.54,0.00021095,2]
[362963393,1748537443103,-430.0,0.00021095,2]
[362963395,1748537443113,-1256.97,0.00021095,2]
[362963397,1748537443122,-430.0,0.00021095,2]
[362963399,1748537443131,-996.57,0.00021095,2]
[362963401,1748537443140,-430.0,0.00021095,2]
[362963403,1748537443150,-1214.32,0.00021095,2]
[362963405,1748537443159,-430.0,0.00021095,2]
[362963407,1748537443169,-795.2,0.00021095,2]
[362963409,1748537443179,-1346.61,0.00021095,2]
[362963411,1748537443188,-430.0,0.00021095,2]
[362963413,1748537443197,-430.0,0.00021095,2]
[362963415,1748537443206,-430.0,0.00021095,2]
[362963417,1748537443216,-1387.74887818,0.00021107,4]
[362963419,1748537443225,-917.95,0.0002115,2]
[362963421,1748537443234,-500.0,0.00021164,2]
[362963423,1748537443243,-1387.74887818,0.00021279,5]
[362963425,1748537443253,-430.0,0.00021369,2]
[362963427,1748537443262,-205.36,0.00021369,2]
[362963429,1748537443271,-430.0,0.00021369,2]
[362963431,1748537443280,-430.0,0.00021369,2]
[362963433,1748537443290,-430.0,0.00021369,2]
[362963435,1748537443299,-430.0,0.00021369,2]
[362963437,1748537443308,-430.0,0.00021369,2]
[362963439,1748537443318,-430.0,0.00021369,2]
[362963441,1748537443327,-430.0,0.00021369,2]
[362963443,1748537443336,-430.0,0.00021369,2]
[362963445,1748537443345,-430.0,0.00021369,2]
[362963447,1748537443354,-430.0,0.00021369,2]
[362963449,1748537443363,-430.0,0.00021369,2]
[362963451,1748537443373,-625.32,0.00021369,2]
[362963453,1748537443382,-534.32,0.00021369,2]
[362963455,1748537443391,-447.31,0.00021369,2]
[362963457,1748537443401,-430.0,0.00021369,2]
[362963459,1748537443410,-385.95460126,0.00021369,2]
[362963461,1748537443420,-430.0,0.00021369,2]
[362963463,1748537443430,-430.0,0.00021369,2]
[362963465,1748537443439,-1577.09,0.00021369,2]
[362963467,1748537443447,-3728.52,0.00021369,2]
[362963469,1748537443457,-637.94,0.00021369,2]
[362963471,1748537443466,-430.0,0.00021369,2]
[362963473,1748537443475,-430.0,0.00021369,2]
[362963475,1748537443484,-430.0,0.00021369,2]
[362963477,1748537443496,-430.0,0.00021369,2]
[362963479,1748537443506,-1078.54,0.00021369,2]
[362963481,1748537443516,-443.89,0.00021369,2]
[362963483,1748537443525,-1256.97,0.00021369,2]
[362963485,1748537443535,-430.0,0.00021369,2]
[362963487,1748537443544,-996.57,0.00021369,2]
[362963489,1748537443553,-430.0,0.00021369,2]
[362963491,1748537443564,-1214.32,0.00021369,2]
[362963493,1748537443577,-430.0,0.00021369,2]
[362963495,1748537443587,-795.2,0.00021369,2]
[362963497,1748537443596,-1346.61,0.00021369,2]
[362963499,1748537443605,-430.0,0.00021369,2]
[362963501,1748537443615,-430.0,0.00021369,2]
[362963503,1748537443624,-430.0,0.00021369,2]
[362963505,1748537443633,-1387.74887818,0.00021452,5]
[362963507,1748537443642,-1387.74887818,0.00021624,5]
[362963509,1748537443651,-430.0,0.00021643,2]
[362963511,1748537443661,-430.0,0.00021643,2]
[362963513,1748537443671,-430.0,0.00021643,2]
[362963515,1748537443681,-430.0,0.00021643,2]
[362963517,1748537443690,-430.0,0.00021643,2]
[362963518,1748537443699,-430.0,0.00021643,2]
[362963520,1748537443708,-430.0,0.00021643,2]
[362963522,1748537443717,-430.0,0.00021643,2]
[362963524,1748537443726,-430.0,0.00021643,2]
[362963526,1748537443735,-433.73455394,0.00021643,2]
[362963528,1748537443744,-430.0,0.00021643,2]
[362963530,1748537443753,-625.32,0.00021643,2]
[362963532,1748537443762,-534.32,0.00021643,2]
[362963534,1748537443771,-447.31,0.00021643,2]
[362963536,1748537443780,-430.0,0.00021643,2]
[362963538,1748537443789,-430.0,0.00021643,2]
[362963540,1748537443798,-430.0,0.00021643,2]
[362963542,1748537443807,-1577.09,0.00021643,2]
[362963544,1748537443817,-3728.52,0.00021643,2]
[362963546,1748537443828,-637.94,0.00021643,2]
[362963548,1748537443837,-430.0,0.00021643,2]
[362963550,1748537443846,-551.29,0.00021643,2]
[362963552,1748537443855,-430.0,0.00021643,2]
[362963554,1748537443864,-430.0,0.00021643,2]
[362963556,1748537443873,-1078.54,0.00021643,2]
[362963558,1748537443882,-1256.97,0.00021643,2]
[362963560,1748537443892,-430.0,0.00021643,2]
[362963562,1748537443901,-996.57,0.00021643,2]
[362963564,1748537443910,-430.0,0.00021643,2]
[362963566,1748537443919,-1214.32,0.00021643,2]
[362963568,1748537443928,-430.0,0.00021643,2]
[362963570,1748537443937,-795.2,0.00021643,2]
[362963572,1748537443946,-1346.61,0.00021643,2]
[362963574,1748537443955,-430.0,0.00021643,2]
[362963576,1748537443963,-430.0,0.00021643,2]
[362963578,1748537443972,-265.51,0.00021643,2]
[362963580,1748537443981,-600.0,0.00021686,2]
[362963582,1748537443990,-1387.74887818,0.00021797,6]
[362963584,1748537444005,-430.0,0.00021917,2]
[362963586,1748537444015,-430.0,0.00021917,2]
[362963588,1748537444024,-430.0,0.00021917,2]
[362963590,1748537444033,-430.0,0.00021917,2]
[362963591,1748537444042,-430.0,0.00021917,2]
[362963594,1748537444053,-430.0,0.00021917,2]
[362963595,1748537444062,-381.4099551,0.00021917,2]
[362963597,1748537444071,-430.0,0.00021917,2]
[362963599,1748537444081,-430.0,0.00021917,2]
[362963601,1748537444091,-430.0,0.00021917,2]
[362963604,1748537444100,-625.32,0.00021917,2]
[362963606,1748537444110,-534.32,0.00021917,2]
[362963607,1748537444120,-447.31,0.00021917,2]
[362963610,1748537444130,-430.0,0.00021917,2]
[362963611,1748537444139,-430.0,0.00021917,2]
[362963613,1748537444149,-1577.09,0.00021917,2]
[362963615,1748537444159,-3728.52,0.00021917,2]
[362963617,1748537444168,-637.94,0.00021917,2]
[362963619,1748537444177,-430.0,0.00021917,2]
[362963621,1748537444186,-486.58,0.00021917,2]
[362963623,1748537444195,-1078.54,0.00021917,2]
[362963625,1748537444204,-1256.97,0.00021917,2]
[362963627,1748537444215,-430.0,0.00021917,2]
[362963629,1748537444226,-996.57,0.00021917,2]
[362963631,1748537444240,-430.0,0.00021917,2]
[362963633,1748537444251,-1214.32,0.00021917,2]
[362963635,1748537444260,-430.0,0.00021917,2]
[362963637,1748537444270,-795.2,0.00021917,2]
[362963639,1748537444280,-1346.61,0.00021917,2]
[362963641,1748537444289,-430.0,0.00021917,2]
[362963643,1748537444298,-2000.0,0.00021918,7]
[362963645,1748537444307,-265.68395701,0.00021918,2]
[362963647,1748537444316,-500.0,0.00021918,2]
[362963649,1748537444327,-500.0,0.00021918,2]
[362963651,1748537444336,-500.0,0.00021918,2]
[362963653,1748537444346,-500.0,0.00021918,2]
[362963655,1748537444355,-152.04005177,0.00021918,2]
[362963657,1748537444365,-1387.74887818,0.00021969,6]
[362963659,1748537444373,-328.24,0.00022,7]
[362963661,1748537444383,-30948.75,0.00022,7]
[362963663,1748537444393,-1054.4,0.00022,7]
[362963665,1748537444402,-7684.39,0.00022,2]
[362963667,1748537444412,-52601.3,0.00022,2]
[362963669,1748537444422,-704.45850907,0.00022087,2]
[362963671,1748537444433,-578.21270261,0.00022126,2]
[362963672,1748537444443,-1387.74887818,0.00022141,6]
[362963674,1748537444452,-430.0,0.00022191,2]
[362963676,1748537444462,-430.0,0.00022191,2]
[362963678,1748537444473,-430.0,0.00022191,2]
[362963680,1748537444482,-430.0,0.00022191,2]
[362963682,1748537444491,-430.0,0.00022191,2]
[362963685,1748537444505,-430.0,0.00022191,2]
[362963686,1748537444515,-430.0,0.00022191,2]
[362963688,1748537444525,-430.0,0.00022191,2]
[362963690,1748537444535,-625.32,0.00022191,2]
[362963692,1748537444544,-534.32,0.00022191,2]
[362963695,1748537444555,-447.31,0.00022191,2]
[362963697,1748537444565,-430.0,0.00022191,2]
[362963699,1748537444577,-430.0,0.00022191,2]
[362963701,1748537444589,-1577.09,0.00022191,2]
[362963702,1748537444598,-3728.52,0.00022191,2]
[362963703,1748537444608,-637.94,0.00022191,2]
[362963704,1748537444619,-430.0,0.00022191,2]
[362963705,1748537444628,-1078.54,0.00022191,2]
[362963706,1748537444638,-1256.97,0.00022191,2]
[362963707,1748537444648,-430.0,0.00022191,2]
[362963708,1748537444657,-996.57,0.00022191,2]
[362963710,1748537444666,-430.0,0.00022191,2]
[362963712,1748537444675,-1214.32,0.00022191,2]
[362963714,1748537444685,-795.2,0.00022191,2]
[362963716,1748537444695,-1346.61,0.00022191,2]
[362963718,1748537444704,-430.0,0.00022191,2]
[362963720,1748537444714,-175.04106957,0.00022199,5]
[362963722,1748537444723,-1200.0,0.00022234,2]
[362963724,1748537444732,-1387.74887818,0.00022314,7]
[362963726,1748537444742,-430.0,0.00022465,2]
[362963728,1748537444751,-430.0,0.00022465,2]
[362963730,1748537444760,-430.0,0.00022465,2]
[362963732,1748537444771,-566.64,0.00022465,2]
[362963734,1748537444780,-430.0,0.00022465,2]
[362963736,1748537444789,-430.0,0.00022465,2]
[362963738,1748537444798,-430.0,0.00022465,2]
[362963740,1748537444808,-625.32,0.00022465,2]
[362963742,1748537444817,-534.32,0.00022465,2]
[362963744,1748537444827,-447.31,0.00022465,2]
[362963747,1748537444844,-430.0,0.00022465,2]
[362963749,1748537444854,-430.0,0.00022465,2]
[362963750,1748537444864,-1577.09,0.00022465,2]
[362963752,1748537444874,-3728.52,0.00022465,2]
[362963754,1748537444884,-637.94,0.00022465,2]
[362963756,1748537444893,-430.0,0.00022465,2]
[362963758,1748537444903,-1078.54,0.00022465,2]
[362963760,1748537444913,-1256.97,0.00022465,2]
[362963762,1748537444923,-430.0,0.00022465,2]
[362963764,1748537444935,-996.57,0.00022465,2]
[362963766,1748537444946,-430.0,0.00022465,2]
[362963768,1748537444955,-1214.32,0.00022465,2]
[362963770,1748537444967,-795.2,0.00022465,2]
[362963772,1748537444980,-1346.61,0.00022465,2]
[362963774,1748537444990,-430.0,0.00022465,2]
[362963777,1748537445002,-1387.74887818,0.00022486,7]
[362963778,1748537445015,-1101.54,0.0002256,2]
[362963780,1748537445026,-1387.74887818,0.00022659,7]
[362963783,1748537445036,-430.0,0.00022739,2]
[362963793,1748537445145,-430.0,0.00022739,2]
[362963794,1748537445158,-430.0,0.00022739,2]
[362963796,1748537445169,-496.78,0.00022739,2]
[362963798,1748537445180,-430.0,0.00022739,2]
[362963800,1748537445191,-430.0,0.00022739,2]
[362963801,1748537445201,-625.32,0.00022739,2]
[362963802,1748537445213,-534.32,0.00022739,2]
[362963803,1748537445226,-447.31,0.00022739,2]
[362963804,1748537445240,-430.0,0.00022739,2]
[362963805,1748537445250,-430.0,0.00022739,2]
[362963806,1748537445260,-1577.09,0.00022739,2]
[362963807,1748537445271,-3728.52,0.00022739,2]
[362963808,1748537445282,-637.94,0.00022739,2]
[362963809,1748537445293,-430.0,0.00022739,2]
[362963810,1748537445303,-1078.54,0.00022739,2]
[362963811,1748537445315,-1256.97,0.00022739,2]
[362963812,1748537445326,-430.0,0.00022739,2]
[362963813,1748537445337,-996.57,0.00022739,2]
[362963814,1748537445347,-549.28,0.00022739,2]
[362963815,1748537445357,-1214.32,0.00022739,2]
[362963816,1748537445367,-795.2,0.00022739,2]
[362963817,1748537445376,-1346.61,0.00022739,2]
[362963818,1748537445387,-411.42155834,0.00022739,2]
[362963819,1748537445397,-1584.09246953,0.00022782,2]
[362963820,1748537445407,-1387.74887818,0.00022831,8]
[362963821,1748537445417,-157.62907974,0.00022959,2]
[362963822,1748537445427,-1387.74887818,0.00023003,8]
[362963823,1748537445438,-430.0,0.00023013,2]
[362963824,1748537445447,-430.0,0.00023013,2]
[362963825,1748537445458,-430.0,0.00023013,2]
[362963826,1748537445468,-430.0,0.00023013,2]
[362963827,1748537445480,-430.0,0.00023013,2]
[362963828,1748537445492,-625.32,0.00023013,2]
[362963829,1748537445506,-534.32,0.00023013,2]
[362963830,1748537445517,-447.31,0.00023013,2]
[362963832,1748537445527,-430.0,0.00023013,2]
[362963834,1748537445539,-430.0,0.00023013,2]
[362963836,1748537445550,-1577.09,0.00023013,2]
[362963837,1748537445560,-3728.52,0.00023013,2]
[362963838,1748537445570,-637.94,0.00023013,2]
[362963839,1748537445582,-430.0,0.00023013,2]
[362963840,1748537445593,-1078.54,0.00023013,2]
[362963841,1748537445603,-1256.97,0.00023013,2]
[362963842,1748537445612,-430.0,0.00023013,2]
[362963843,1748537445623,-996.57,0.00023013,2]
[362963844,1748537445636,-1214.32,0.00023013,2]
[362963845,1748537445647,-795.2,0.00023013,2]
[362963846,1748537445657,-1346.61,0.00023013,2]
[362963847,1748537445667,-297.47,0.000231,7]
[362963848,1748537445677,-1387.74887818,0.00023176,8]
[362963849,1748537445687,-430.0,0.00023287,2]
[362963850,1748537445698,-441.76,0.00023287,2]
[362963851,1748537445708,-302.20583078,0.00023287,2]
[362963852,1748537445718,-241.74,0.00023287,2]
[362963853,1748537445727,-430.0,0.00023287,2]
[362963854,1748537445735,-625.32,0.00023287,2]
[362963855,1748537445745,-534.32,0.00023287,2]
[362963856,1748537445755,-447.31,0.00023287,2]
[362963857,1748537445763,-430.0,0.00023287,2]
[362963858,1748537445773,-430.0,0.00023287,2]
[362963859,1748537445783,-1577.09,0.00023287,2]
[362963860,1748537445793,-3728.52,0.00023287,2]
[362963861,1748537445803,-637.94,0.00023287,2]
[362963862,1748537445813,-430.0,0.00023287,2]
[362963863,1748537445823,-1078.54,0.00023287,2]
[362963864,1748537445833,-1256.97,0.00023287,2]
[362963865,1748537445844,-430.0,0.00023287,2]
[362963866,1748537445854,-996.57,0.00023287,2]
[362963867,1748537445863,-1214.32,0.00023287,2]
[362963868,1748537445874,-795.2,0.00023287,2]
[362963869,1748537445884,-1346.61,0.00023287,2]
[362963870,1748537445893,-30948.75,0.000233,7]
[362963871,1748537445904,-7684.39,0.000233,2]
[362963872,1748537445914,-52601.3,0.000233,2]
[362963873,1748537445925,-1387.74887818,0.00023348,9]
[362963874,1748537445935,-500.0,0.00023356,2]
[362963875,1748537445945,-207.4,0.00023454,2]
[362963876,1748537445959,-5000.0,0.00023454,2]
[362963877,1748537445971,-4417.25543684,0.00023454,2]
[362963878,1748537445983,-300.0,0.00023454,2]
[362963880,1748537445993,-300.0,0.00023454,2]
[362963882,1748537446003,-300.0,0.00023454,2]
[362963883,1748537446014,-300.0,0.00023454,2]
[362963885,1748537446024,-1456.0,0.00023488,2]
[362963888,1748537446035,-578.21270261,0.00023513,2]
[362963889,1748537446044,-1387.74887818,0.00023521,9]
[362963891,1748537446055,-430.0,0.00023561,2]
[362963893,1748537446064,-430.0,0.00023561,2]
[362963895,1748537446075,-625.32,0.00023561,2]
[362963897,1748537446085,-534.32,0.00023561,2]
[362963899,1748537446096,-447.31,0.00023561,2]
[362963901,1748537446107,-430.0,0.00023561,2]
[362963903,1748537446117,-430.0,0.00023561,2]
[362963904,1748537446126,-1577.09,0.00023561,2]
[362963906,1748537446137,-3728.52,0.00023561,2]